bitfinex-derivatives/quotes_BTCF0:USTF0_20250508
["timestamp","ask_amount","ask_price","bid_price","bid_amount"]
[1746676014084,0.2020247,98994.0,98993.0,0.3700243]
[1746676014678,0.2020141,98998.0,98997.0,0.2020141]
[1746676014982,0.2020141,98999.0,98998.0,0.202009]
[1746676015287,0.2020121,98999.0,98998.0,0.5091141]
[1746676015485,0.2020121,98999.0,98998.0,0.3079141]
[1746676015874,0.2020121,98999.0,98998.0,0.3279141]
[1746676016078,0.2020121,98999.0,98998.0,0.4959141]
[1746676017592,0.2020121,98999.0,98998.0,0.4859141]
[1746676017792,0.2020121,98999.0,98998.0,0.5059141]
[1746676018291,0.2020121,98999.0,98998.0,0.5069141]
[1746676018491,0.2020121,98999.0,98998.0,0.2378]
[1746676018786,0.2631121,98999.0,98998.0,0.17]
[1746676019086,0.3255121,98999.0,98998.0,0.17]
[1746676020490,0.2631121,98999.0,98998.0,0.3720141]
[1746676020686,0.2631121,98999.0,98998.0,0.4316141]
[1746676022288,0.0611,98999.0,98998.0,0.4316141]
[1746676022593,0.0611,98999.0,98998.0,0.4787141]
[1746676023095,0.0611,98999.0,98998.0,0.4887141]
[1746676023291,0.0611,98999.0,98998.0,0.5087141]
[1746676023594,0.2631121,98999.0,98998.0,0.7687141]
[1746676023786,0.0611,98999.0,98998.0,0.7687141]
[1746676024600,0.0611,98999.0,98998.0,0.5177141]
[1746676024790,0.0611,98999.0,98998.0,0.5187141]
[1746676025693,0.0611,98999.0,98998.0,0.4516141]
[1746676025895,0.2631121,98999.0,98998.0,0.19]
[1746676026094,0.3268121,98999.0,98998.0,0.17]
[1746676027294,0.3268121,98999.0,98998.0,0.12958]
[1746676027697,0.2020447,98983.0,98979.0,0.3609]
[1746676028202,0.2020447,98983.0,98982.0,0.12908542]
[1746676028901,0.2020447,98983.0,98982.0,0.13808542]
[1746676029702,0.2020447,98983.0,98982.0,0.07167402]
[1746676030203,0.2020447,98983.0,98982.0,0.03123402]
[1746676030897,0.2646447,98983.0,98982.0,0.02623402]
[1746676031693,0.3251447,98983.0,98982.0,0.02623402]
[1746676031902,0.3251447,98983.0,98982.0,0.02223402]
[1746676032098,0.3261447,98983.0,98982.0,0.02223402]
[1746676032999,0.2020509,98980.0,98979.0,0.0001]
[1746676033202,0.2020692,98971.0,98970.0,0.32147035]
[1746676033899,0.2020835,98964.0,98959.0,0.2021927]
[1746676034403,0.2020835,98964.0,98963.0,0.12907556]
[1746676035004,0.20189977,98964.0,98963.0,0.12907556]
[1746676035206,0.20189977,98964.0,98963.0,0.08863556]
[1746676035705,0.20189977,98964.0,98963.0,0.09263556]
[1746676036908,0.20189977,98964.0,98963.0,0.09663556]
[1746676038308,0.20189977,98964.0,98963.0,0.05619556]
[1746676039504,0.20189977,98964.0,98963.0,0.25828116]
[1746676040211,0.20189977,98964.0,98963.0,0.21784116]
[1746676040510,0.20189977,98964.0,98963.0,0.28164116]
[1746676042605,0.0636,98970.0,98963.0,0.07955556]
[1746676042813,0.2525872,98974.0,98973.0,0.2020652]
[1746676043104,0.2020713,98970.0,98969.0,0.3608]
[1746676043310,0.2020713,98970.0,98969.0,0.32036]
[1746676043617,0.2020835,98964.0,98963.0,0.01175556]
[1746676043909,0.2020835,98964.0,98963.0,0.01575556]
[1746676044307,0.2020937,98959.0,98958.0,0.33621556]
[1746676045210,0.2020937,98959.0,98958.0,0.46377556]
[1746676045614,0.2020937,98959.0,98958.0,0.46877556]
[1746676046103,0.2020937,98959.0,98958.0,0.46377556]
[1746676046303,0.2020937,98959.0,98958.0,0.46477556]
[1746676047409,0.2020937,98959.0,98958.0,0.66687136]
[1746676047607,0.2040937,98959.0,98958.0,0.66687136]
[1746676047912,0.002,98959.0,98958.0,0.66687136]
[1746676048113,0.2040937,98959.0,98958.0,0.66687136]
[1746676048297,0.2040937,98959.0,98958.0,0.75623136]
[1746676049102,0.2040937,98959.0,98958.0,0.42433556]
[1746676051304,0.2040937,98959.0,98958.0,0.169]
[1746676051512,0.5648937,98959.0,98958.0,0.169]
[1746676052211,0.5648937,98959.0,98958.0,0.12856]
[1746676054509,0.2021162,98948.0,98947.0,0.00151596]
[1746676054821,0.5629162,98948.0,98947.0,0.00151596]
[1746676055107,0.5629162,98948.0,98947.0,0.16951596]
[1746676055615,0.6908162,98948.0,98947.0,0.37163426]
[1746676055816,0.3300162,98948.0,98947.0,0.37563426]
[1746676056012,0.3300162,98948.0,98947.0,0.17351596]
[1746676056207,0.3300162,98948.0,98947.0,0.37563426]
[1746676056414,0.2677162,98948.0,98947.0,0.37563426]
[1746676056607,0.0505273,98952.0,98947.0,0.37563426]
[1746676056608,0.2021151,98949.0,98948.0,0.2021162]
[1746676056813,0.2021151,98949.0,98948.0,0.3278162]
[1746676057215,0.2021151,98949.0,98948.0,0.7653762]
[1746676057420,0.2021151,98949.0,98948.0,0.7153762]
[1746676057619,0.2020944,98959.0,98958.0,0.2020958]
[1746676057813,0.2020944,98959.0,98958.0,0.5628958]
[1746676058006,0.2020944,98959.0,98958.0,0.3608]
[1746676058211,0.2020944,98959.0,98958.0,0.48836]
[1746676058415,0.3331944,98959.0,98958.0,0.48836]
[1746676058719,0.3331944,98959.0,98958.0,0.6904558]
[1746676058917,0.3331944,98959.0,98958.0,0.3017]
[1746676059112,0.3331944,98959.0,98958.0,0.168]
[1746676059419,0.3351944,98959.0,98958.0,0.168]
[1746676060017,0.6959944,98959.0,98958.0,0.168]
[1746676060212,0.6959944,98959.0,98958.0,0.12756]
[1746676061330,0.24004598,98940.0,98935.0,0.3608]
[1746676061520,0.24004598,98940.0,98939.0,0.0001]
[1746676062121,0.30534598,98940.0,98939.0,0.1681]
[1746676062324,0.2674326,98940.0,98939.0,0.13018]
[1746676062528,0.2674326,98940.0,98939.0,0.13718]
[1746676063333,0.2674326,98940.0,98939.0,0.3393146]
[1746676063829,0.2674326,98940.0,98939.0,0.13718]
[1746676064222,0.2674326,98940.0,98939.0,0.09673]
[1746676064424,0.2021428,98935.0,98934.0,0.01516]
[1746676064626,0.5629428,98935.0,98934.0,0.01516]
[1746676064827,0.202153,98930.0,98925.0,0.2021629]
[1746676065227,0.202153,98930.0,98929.0,0.12765]
[1746676066227,0.202153,98930.0,98929.0,0.13065]
[1746676066423,0.202153,98930.0,98929.0,0.13465]
[1746676067330,0.202153,98930.0,98929.0,0.09419]
[1746676070934,0.0505283,98950.0,98929.0,0.70499]
[1746676071134,0.2021311,98944.0,98943.0,0.2021159]
[1746676071345,0.2021311,98944.0,98943.0,0.1616659]
[1746676071930,0.2021311,98944.0,98943.0,0.2940659]
[1746676072126,0.2021311,98944.0,98943.0,0.4620659]
[1746676072331,0.2684311,98944.0,98943.0,0.4620659]
[1746676073039,0.2041311,98944.0,98943.0,0.4620659]
[1746676073533,0.2041311,98944.0,98943.0,0.5025264]
[1746676073734,0.002,98944.0,98943.0,0.7925264]
[1746676074441,0.002,98944.0,98943.0,0.7720764]
[1746676074643,0.0015,98965.0,98964.0,0.2020835]
[1746676074945,0.2035815,98965.0,98964.0,0.6628835]
[1746676075140,0.2035815,98965.0,98964.0,0.8308835]
[1746676075439,0.2035815,98965.0,98964.0,0.7904435]
[1746676075838,0.2095815,98965.0,98964.0,0.7914435]
[1746676076037,0.2155815,98965.0,98964.0,0.6924435]
[1746676076230,0.2155815,98965.0,98964.0,0.5308]
[1746676076634,0.2125815,98965.0,98964.0,0.5298]
[1746676077336,0.2125815,98965.0,98964.0,0.169]
[1746676077544,0.2743815,98965.0,98964.0,0.168]
[1746676077834,0.2783815,98965.0,98964.0,0.169]
[1746676078139,0.2105815,98965.0,98964.0,0.6610835]
[1746676078335,0.2105815,98965.0,98964.0,0.7496435]
[1746676078537,0.2105815,98965.0,98964.0,0.4696435]
[1746676080341,0.2105815,98965.0,98964.0,0.27756]
[1746676080549,0.2105815,98965.0,98964.0,0.26756]
[1746676082841,0.2105815,98965.0,98964.0,0.19686]
[1746676083045,0.2801815,98965.0,98964.0,0.12856]
[1746676083541,0.6409815,98965.0,98964.0,0.12856]
[1746676084448,0.6409815,98965.0,98964.0,0.08812]
[1746676085343,0.2021223,98945.0,98944.0,0.07]
[1746676085639,0.2526532,98945.0,98944.0,0.02]
[1746676086142,0.2526532,98945.0,98944.0,0.188]
[1746676086337,0.6134532,98945.0,98944.0,0.14755]
[1746676086532,0.6134532,98945.0,98944.0,0.14955]
[1746676087137,0.6868532,98945.0,98944.0,0.14955]
[1746676087337,0.6868532,98945.0,98944.0,0.1091]
[1746676087541,0.6868532,98945.0,98944.0,0.1101]
[1746676088337,0.6878532,98945.0,98944.0,0.1081]
[1746676088536,0.6878532,98945.0,98944.0,0.1071]
[1746676088740,0.6898532,98945.0,98944.0,0.1071]
[1746676092243,0.6898532,98945.0,98944.0,0.06665]
[1746676092746,0.2021305,98941.0,98940.0,0.01516]
[1746676093047,0.202153,98930.0,98929.0,0.0741]
[1746676093250,0.2021693,98922.0,98921.0,0.0747]
[1746676093443,0.2021734,98920.0,98919.0,0.0001]
[1746676094253,0.2021734,98920.0,98919.0,0.12764]
[1746676094648,0.2766734,98920.0,98919.0,0.12764]
[1746676094850,0.2766734,98920.0,98919.0,0.20174]
[1746676095553,0.2776734,98920.0,98919.0,0.20674]
[1746676095750,0.2031734,98920.0,98919.0,0.20674]
[1746676095946,0.2031734,98920.0,98919.0,0.27794]
[1746676096146,0.2031734,98920.0,98919.0,0.13264]
[1746676096346,0.2703734,98920.0,98919.0,0.09218]
[1746676097259,0.2022123,98901.0,98895.0,0.05124362]
[1746676097466,0.2022123,98901.0,98897.0,0.0727]
[1746676097658,0.5630123,98901.0,98900.0,0.1]
[1746676097853,0.5630123,98901.0,98900.0,0.0298275]
[1746676098058,0.5630123,98901.0,98886.0,0.0727]
[1746676098059,0.2022409,98887.0,98886.0,0.0727]
[1746676098256,0.2022409,98887.0,98886.0,0.05144]
[1746676098455,0.2022429,98886.0,98885.0,0.00101127]
[1746676098656,0.2747429,98886.0,98885.0,0.00101127]
[1746676099051,0.2747429,98886.0,98885.0,0.16901127]
[1746676099455,0.2022429,98886.0,98885.0,0.64125627]
[1746676099859,0.2022392,98891.0,98890.0,0.2022327]
[1746676100059,0.2022392,98891.0,98890.0,0.7988]
[1746676100359,0.2022392,98891.0,98890.0,0.75833]
[1746676100760,0.2747392,98891.0,98890.0,0.75833]
[1746676101155,0.2747392,98891.0,98890.0,0.9605648]
[1746676101356,0.2022392,98891.0,98890.0,0.9605648]
[1746676101558,0.2022276,98898.0,98897.0,0.2022184]
[1746676101762,0.2022276,98898.0,98897.0,0.5022184]
[1746676102261,0.2022276,98898.0,98897.0,0.6702184]
[1746676102465,0.2021931,98914.0,98913.0,0.2021778]
[1746676102661,0.2021931,98914.0,98913.0,0.8329778]
[1746676102956,0.2021931,98914.0,98913.0,0.95463032]
[1746676103154,0.2021931,98914.0,98913.0,1.0709778]
[1746676103361,0.2021931,98914.0,98913.0,1.0305178]
[1746676103864,0.2021931,98914.0,98913.0,0.8688]
[1746676104065,0.2021931,98914.0,98913.0,1.0009877]
[1746676104561,0.2021931,98914.0,98913.0,0.7988]
[1746676104758,0.2081931,98914.0,98913.0,0.8008]
[1746676104960,0.2131931,98914.0,98913.0,0.8008]
[1746676105169,0.2131931,98914.0,98913.0,0.44]
[1746676105556,0.2131931,98914.0,98913.0,0.6421877]
[1746676105765,0.2131931,98914.0,98913.0,0.6521877]
[1746676106161,0.2131931,98914.0,98913.0,0.45]
[1746676106363,0.2131931,98914.0,98913.0,0.44]
[1746676106563,0.2131931,98914.0,98913.0,0.17]
[1746676107868,0.2131931,98914.0,98913.0,0.3721877]
[1746676108667,0.2131931,98914.0,98913.0,0.4474877]
[1746676109365,0.011,98914.0,98913.0,0.5874877]
[1746676109566,0.2131857,98914.0,98913.0,0.5874877]
[1746676109762,0.2071857,98914.0,98913.0,0.6264877]
[1746676109969,0.2131857,98914.0,98913.0,0.6274877]
[1746676111269,0.2051857,98914.0,98913.0,0.6264877]
[1746676111468,0.2081857,98914.0,98913.0,0.6264877]
[1746676112167,0.2081857,98914.0,98913.0,0.4243]
[1746676112561,0.2081857,98914.0,98913.0,0.309]
[1746676113270,0.2815857,98914.0,98913.0,0.309]
[1746676114368,0.2815857,98914.0,98913.0,0.26854]
[1746676114972,0.2815857,98914.0,98913.0,0.12854]
[1746676115164,0.3565857,98914.0,98913.0,0.001]
[1746676115364,0.2022143,98900.0,98899.0,0.0707]
[1746676115574,0.2022143,98900.0,98899.0,0.5429164]
[1746676116073,0.2416702,98904.0,98903.0,0.2022082]
[1746676116272,0.2416702,98904.0,98903.0,0.8130082]
[1746676116967,0.2416702,98904.0,98903.0,0.6108]
[1746676117374,0.2416702,98904.0,98903.0,0.8130082]
[1746676117973,0.2416702,98904.0,98903.0,0.8230082]
[1746676118173,0.2436702,98904.0,98903.0,0.8240082]
[1746676118363,0.2456702,98904.0,98903.0,0.8250082]
[1746676118761,0.2456702,98904.0,98903.0,0.8150082]
[1746676119365,0.2456702,98904.0,98903.0,0.8350082]
[1746676119671,0.2456702,98904.0,98903.0,0.8150082]
[1746676119874,0.2456702,98904.0,98903.0,0.8450082]
[1746676120065,0.6064702,98904.0,98903.0,0.002]
[1746676120377,0.2456702,98904.0,98903.0,0.002]
[1746676121069,0.3163702,98904.0,98903.0,0.002]
[1746676121259,0.3163702,98904.0,98903.0,0.292]
[1746676121866,0.3163702,98904.0,98903.0,0.002]
[1746676123973,0.3163702,98904.0,98903.0,0.012]
[1746676124476,0.3163702,98904.0,98903.0,0.262]
[1746676124672,0.3163702,98904.0,98903.0,0.4742082]
[1746676124873,0.3763702,98904.0,98903.0,0.262]
[1746676125073,0.17416,98904.0,98903.0,0.4642082]
[1746676125377,0.17416,98904.0,98903.0,0.4742082]
[1746676125779,0.10346,98904.0,98903.0,0.4842082]
[1746676126077,0.10346,98904.0,98903.0,0.4742082]
[1746676126471,0.17997148,98917.0,98916.0,0.2021816]
[1746676126671,0.38215108,98917.0,98916.0,1.1837816]
[1746676127272,0.17997148,98917.0,98916.0,1.1633216]
[1746676127574,0.25518727,98928.0,98926.0,0.2021612]
[1746676127575,0.20464787,98928.0,98926.0,0.2021612]
[1746676127776,0.20464787,98928.0,98926.0,0.9829612]
[1746676128170,0.20464787,98928.0,98926.0,0.9629612]
[1746676128373,0.20464787,98928.0,98926.0,1.1080612]
[1746676128570,0.0703,98929.0,98926.0,1.1080612]
[1746676128876,0.00851719,98927.0,98926.0,1.1090612]
[1746676129581,0.21667629,98927.0,98926.0,1.1100612]
[1746676130083,0.27667629,98927.0,98926.0,1.0365612]
[1746676130281,0.27667629,98927.0,98926.0,0.6528]
[1746676130577,0.27667629,98927.0,98926.0,0.002]
[1746676130578,0.63747629,98927.0,98926.0,0.002]
[1746676130778,0.71157629,98927.0,98926.0,0.002]
[1746676130972,0.78147629,98927.0,98926.0,0.002]
[1746676131371,0.2021796,98917.0,98916.0,0.3608]
[1746676131571,0.2621796,98917.0,98916.0,0.8629816]
[1746676131872,0.2621796,98917.0,98916.0,0.6708]
[1746676132069,0.2621796,98917.0,98916.0,0.8629816]
[1746676132267,0.4084796,98917.0,98916.0,0.6608]
[1746676133083,0.4084796,98917.0,98916.0,0.8629816]
[1746676133271,0.4084796,98917.0,98916.0,0.6608]
[1746676133478,0.4084796,98917.0,98916.0,0.6618]
[1746676133479,0.4124796,98917.0,98916.0,0.6618]
[1746676133973,0.4124796,98917.0,98916.0,0.3618]
[1746676134178,0.4124796,98917.0,98916.0,0.3718]
[1746676134378,0.4174796,98917.0,98916.0,0.3728]
[1746676134875,0.4174796,98917.0,98916.0,0.3828]
[1746676135070,0.4174796,98917.0,98916.0,0.3728]
[1746676136782,0.4174796,98917.0,98916.0,0.6728]
[1746676136983,0.4174796,98917.0,98916.0,0.8749816]
[1746676137482,0.4174796,98917.0,98916.0,0.6828]
[1746676137682,0.4174796,98917.0,98916.0,0.3828]
[1746676138672,0.4174796,98917.0,98916.0,0.3628]
[1746676138876,0.4174796,98917.0,98916.0,0.6428]
[1746676139080,0.4174796,98917.0,98916.0,0.3628]
[1746676139382,0.4174796,98917.0,98916.0,0.6428]
[1746676139580,0.4174796,98917.0,98916.0,0.022]
[1746676139879,0.8582796,98917.0,98916.0,0.022]
[1746676140387,0.2022123,98902.0,98901.0,0.2022118]
[1746676140585,0.2622123,98902.0,98901.0,0.02]
[1746676140773,0.3127651,98902.0,98901.0,0.2222123]
[1746676140977,0.3127651,98902.0,98901.0,0.02]
[1746676141279,0.3127651,98902.0,98901.0,0.2022123]
[1746676141483,0.3137651,98902.0,98901.0,0.4932123]
[1746676141681,0.3147651,98902.0,98901.0,0.2342123]
[1746676142379,0.2642123,98902.0,98901.0,0.5242123]
[1746676142578,0.062,98902.0,98901.0,0.5242123]
[1746676142778,0.3032531,98925.0,98924.0,0.2021652]
[1746676142978,0.2621697,98925.0,98924.0,0.5121652]
[1746676143187,0.00151719,98927.0,98926.0,0.1617112]
[1746676143489,0.00151719,98927.0,98926.0,0.4817112]
[1746676144189,0.00151719,98927.0,98926.0,0.5017112]
[1746676144388,0.00951719,98927.0,98926.0,0.5017112]
[1746676144578,0.00951719,98927.0,98926.0,0.5734112]
[1746676144981,0.00951719,98927.0,98926.0,0.5744112]
[1746676144982,0.01651719,98927.0,98926.0,0.5744112]
[1746676146482,0.01451719,98927.0,98926.0,0.5754112]
[1746676147281,0.04045,98935.0,98926.0,0.5754112]
[1746676147282,0.04045,98935.0,98930.0,0.0505379]
[1746676147481,0.0722,98952.0,98945.0,0.2021223]
[1746676147682,0.2743096,98952.0,98945.0,0.8529223]
[1746676147885,0.0722,98952.0,98945.0,0.8529223]
[1746676148185,0.2021104,98951.0,98945.0,0.8629223]
[1746676148583,0.2021132,98950.0,98945.0,0.8629223]
[1746676148780,0.2031203,98946.0,98945.0,0.8629223]
[1746676149089,0.2031203,98946.0,98945.0,0.6508]
[1746676149393,0.2031203,98946.0,98945.0,0.33036]
[1746676149583,0.2031203,98946.0,98945.0,0.5224823]
[1746676149784,0.2031203,98946.0,98945.0,0.8034823]
[1746676149785,0.3526203,98946.0,98945.0,0.8034823]
[1746676150187,0.0802,98946.0,98945.0,0.8044823]
[1746676150890,0.0802,98946.0,98945.0,0.8444823]
[1746676151293,0.0802,98946.0,98945.0,0.8040423]
[1746676151485,0.008,98946.0,98945.0,0.8550092]
[1746676151893,0.008,98946.0,98945.0,0.8750092]
[1746676152391,0.008,98946.0,98945.0,1.0090892]
[1746676154895,0.04044,98958.0,98957.0,0.2020978]
[1746676155098,0.04044,98958.0,98957.0,0.9428978]
[1746676155293,0.2425358,98958.0,98957.0,0.9328978]
[1746676155492,0.11284,98958.0,98957.0,0.9328978]
[1746676155693,0.04044,98958.0,98957.0,1.0848978]
[1746676156291,0.04544,98958.0,98957.0,1.0858978]
[1746676156905,0.04544,98958.0,98957.0,1.0868978]
[1746676157095,0.12454,98958.0,98957.0,1.0868978]
[1746676157295,0.12154,98958.0,98957.0,1.0968978]
[1746676157499,0.2020676,98972.0,98964.0,0.2020835]
[1746676157807,0.0751,98971.0,98964.0,0.5320835]
[1746676158008,0.1256177,98971.0,98964.0,0.6072835]
[1746676158201,0.04043,98966.0,98964.0,0.6072835]
[1746676158709,0.0736,98965.0,98964.0,0.6072835]
[1746676159007,0.0736,98965.0,98964.0,0.6472835]
[1746676160910,0.2756815,98965.0,98964.0,0.04]
[1746676161105,0.3505815,98965.0,98964.0,0.04]
[1746676161804,0.2020978,98957.0,98956.0,0.13404]
[1746676162005,0.2020978,98957.0,98956.0,0.41404]
[1746676162205,0.2020978,98957.0,98956.0,0.5757085]
[1746676162403,0.4208978,98960.0,98959.0,0.2020937]
[1746676162609,0.2020844,98964.0,98963.0,0.2020856]
[1746676162813,0.2730844,98964.0,98963.0,0.4820856]
[1746676163304,0.2730844,98964.0,98963.0,0.4416456]
[1746676163506,0.3608,98971.0,98963.0,0.4416456]
[1746676163507,0.76621428,99023.0,98973.0,0.3608]
[1746676163705,0.00596147,99013.0,98999.0,0.3608]
[1746676163916,0.14192812,99023.0,99022.0,0.2019652]
[1746676164115,0.001,99036.0,99034.0,0.2019407]
[1746676164320,0.12099152,99035.0,99034.0,0.9767807]
[1746676164524,0.0015153,99088.0,99035.0,0.0504841]
[1746676164822,0.2018918,99058.0,99057.0,0.3608]
[1746676165016,0.001,99066.0,99057.0,0.3608]
[1746676165213,0.001,99066.0,99065.0,0.3204]
[1746676165414,0.2018835,99063.0,99057.0,0.3608]
[1746676165721,0.2018803,99064.0,99057.0,0.3608]
[1746676165918,0.001,99066.0,99057.0,0.3708]
[1746676166119,0.001,99066.0,99065.0,0.3608]
[1746676166419,0.2028755,99066.0,99065.0,0.3608]
[1746676167315,0.2048755,99066.0,99065.0,0.3608]
[1746676167713,0.2068755,99066.0,99065.0,0.3608]
[1746676168117,0.2068755,99066.0,99065.0,0.3708]
[1746676168523,1.0668755,99066.0,99065.0,0.3708]
[1746676169124,1.0668755,99066.0,99065.0,0.3608]
[1746676170227,1.0668755,99066.0,99065.0,0.3204]
[1746676170628,0.865,99066.0,99065.0,0.5222775]
[1746676171014,1.0668755,99066.0,99065.0,0.5222775]
[1746676171218,1.0668755,99066.0,99065.0,0.3304]
[1746676171922,1.0668755,99066.0,99065.0,0.01]
[1746676172524,1.0668755,99066.0,99065.0,0.2118775]
[1746676172726,1.0668755,99066.0,99065.0,0.01]
[1746676173430,0.08029516,99100.0,99065.0,0.3708]
[1746676173616,0.0504527,99098.0,99087.0,0.2018327]
[1746676173817,0.0514538,99096.0,99087.0,0.5626327]
[1746676174024,1.0633459,99088.0,99087.0,0.3608]
[1746676174321,1.0633459,99088.0,99087.0,0.32041]
[1746676174930,1.0663459,99088.0,99087.0,0.32041]
[1746676175428,1.2180459,99088.0,99087.0,0.32041]
[1746676176220,1.2180459,99088.0,99087.0,0.33041]
[1746676176429,1.2180459,99088.0,99087.0,0.33811572]
[1746676176931,1.2200459,99088.0,99087.0,0.33811572]
[1746676177821,1.2200459,99088.0,99087.0,0.32811572]
[1746676178730,1.2200459,99088.0,99087.0,0.33811572]
[1746676179028,1.2200459,99088.0,99087.0,0.35811572]
[1746676179225,1.2200459,99088.0,99087.0,0.01770572]
[1746676179430,1.2200459,99088.0,99087.0,0.00770572]
[1746676179732,0.201851,99078.0,99077.0,0.3608]
[1746676180230,0.201851,99078.0,99077.0,0.32796428]
[1746676180728,0.357151,99078.0,99077.0,0.00755428]
[1746676180930,0.357151,99078.0,99077.0,0.002]
[1746676181317,0.2018714,99068.0,99067.0,0.5994829]
[1746676181826,0.0779,99069.0,99068.0,0.2018714]
[1746676182135,0.0779,99069.0,99068.0,0.2856714]
[1746676182427,0.9379,99069.0,99068.0,0.3156714]
[1746676183022,0.9379,99069.0,99068.0,0.3056714]
[1746676183226,1.1397694,99069.0,99068.0,0.06]
[1746676183428,0.2018714,99068.0,99067.0,0.37256023]
[1746676183730,0.2731714,99068.0,99067.0,0.01176023]
[1746676184028,1.2050714,99068.0,99067.0,0.01176023]
[1746676184222,1.2050714,99068.0,99067.0,0.00776023]
[1746676184418,0.2018775,99065.0,99064.0,0.01514]
[1746676184623,0.201902,99053.0,99052.0,0.20341825]
[1746676184931,0.201902,99053.0,99052.0,0.22341825]
[1746676185226,1.061902,99053.0,99052.0,0.22341825]
[1746676185635,1.205102,99053.0,99052.0,0.22341825]
[1746676185823,1.205102,99053.0,99052.0,0.22641825]
[1746676186023,1.205102,99053.0,99052.0,0.01451435]
[1746676186233,1.205102,99053.0,99052.0,0.21641835]
[1746676186829,1.205102,99053.0,99052.0,0.23841835]
[1746676187226,1.205102,99053.0,99052.0,0.02393106]
[1746676187834,1.205102,99053.0,99052.0,0.23583506]
[1746676188733,1.205102,99053.0,99052.0,0.23483506]
[1746676188928,1.205102,99053.0,99052.0,0.03293106]
[1746676189133,1.205102,99053.0,99052.0,0.03193106]
[1746676189335,1.205102,99053.0,99052.0,0.01]
[1746676189732,1.205102,99053.0,99052.0,0.00774688]
[1746676190040,0.2019183,99045.0,99044.0,0.5627203]
[1746676190234,0.2019183,99045.0,99044.0,0.3708]
[1746676190430,0.2019183,99045.0,99044.0,0.3908]
[1746676190832,0.3548183,99045.0,99044.0,0.3708]
[1746676191032,0.3548183,99045.0,99044.0,0.37823185]
[1746676191332,0.3548183,99045.0,99044.0,0.32782185]
[1746676191537,0.3548183,99045.0,99044.0,0.33082185]
[1746676192032,1.2148183,99045.0,99044.0,0.01043185]
[1746676192633,1.2148183,99045.0,99044.0,0.01243185]
[1746676193435,1.2148183,99045.0,99044.0,0.01143185]
[1746676193944,1.2148183,99045.0,99044.0,0.00843185]
[1746676194334,1.2148183,99045.0,99044.0,0.00743185]
[1746676194539,1.2148183,99045.0,99040.0,0.3608]
[1746676194540,0.2019264,99041.0,99040.0,0.3608]
[1746676194740,0.2019264,99041.0,99040.0,0.3908]
[1746676194941,0.2019264,99041.0,99040.0,0.3708]
[1746676195143,1.0619264,99041.0,99040.0,0.01]
[1746676196048,0.2019366,99036.0,99035.0,0.00100974]
[1746676196239,0.2019366,99036.0,99035.0,0.01100974]
[1746676196641,0.2019366,99036.0,99035.0,0.01845729]
[1746676196841,0.2807366,99036.0,99035.0,0.00845729]
[1746676197244,0.2019427,99033.0,99032.0,0.16999129]
[1746676197439,0.2019427,99033.0,99032.0,0.0783]
[1746676197845,0.201957,99026.0,99025.0,0.57016252]
[1746676198048,1.061957,99026.0,99025.0,0.60016252]
[1746676199347,1.061957,99026.0,99025.0,0.39820512]
[1746676200135,1.061957,99026.0,99025.0,0.40220512]
[1746676200340,1.061957,99026.0,99025.0,0.40620512]
[1746676200635,1.061957,99026.0,99025.0,0.60816412]
[1746676201743,1.136657,99026.0,99025.0,0.60816412]
[1746676201941,1.136657,99026.0,99025.0,0.02540512]
[1746676202247,1.136657,99026.0,99025.0,0.17695412]
[1746676202548,1.136657,99026.0,99025.0,0.53775412]
[1746676202949,1.136657,99026.0,99025.0,0.17695412]
[1746676203244,0.9347,99026.0,99025.0,0.002]
[1746676203447,1.1871466,99026.0,99025.0,0.0096242]
[1746676203751,1.1871466,99026.0,99025.0,0.001]
[1746676203944,1.1871466,99026.0,99025.0,0.014]
[1746676204144,1.1871466,99026.0,99025.0,0.1654]
[1746676204452,1.1871466,99026.0,99025.0,0.004]
[1746676204650,1.2664466,99026.0,99025.0,0.004]
[1746676205043,0.2019692,99020.0,99005.0,0.41230954]
[1746676205351,0.2019937,99008.0,99007.0,0.2019958]
[1746676205546,0.08787595,99014.0,99013.0,0.2019835]
[1746676205547,0.03738035,99014.0,99013.0,0.2019835]
[1746676205740,0.03738035,99014.0,99013.0,0.8727835]
[1746676205947,0.03738035,99014.0,99013.0,0.5927835]
[1746676206266,0.89738035,99014.0,99013.0,0.6027835]
[1746676206549,1.09936185,99014.0,99013.0,0.3608]
[1746676206744,0.89738035,99014.0,99013.0,0.5647835]
[1746676206946,1.09936185,99014.0,99013.0,0.5647835]
[1746676207343,1.0619815,99014.0,99013.0,0.5294035]
[1746676208648,1.0619815,99014.0,99013.0,0.32742]
[1746676208851,1.0619815,99014.0,99013.0,0.32542]
[1746676209046,1.0629815,99014.0,99013.0,0.32542]
[1746676209744,1.0629815,99014.0,99013.0,0.32342]
[1746676210342,1.0629815,99014.0,99013.0,0.5254035]
[1746676210545,1.0649815,99014.0,99013.0,0.5254035]
[1746676211048,1.0639815,99014.0,99013.0,0.5254035]
[1746676211254,1.0649815,99014.0,99013.0,0.4949835]
[1746676211940,1.0649815,99014.0,99013.0,0.5671835]
[1746676212140,1.0649815,99014.0,99013.0,0.3652]
[1746676212344,1.0649815,99014.0,99013.0,0.283]
[1746676212546,1.0629815,99014.0,99013.0,0.283]
[1746676212955,1.0639815,99014.0,99013.0,0.283]
[1746676213349,1.0629815,99014.0,99013.0,0.283]
[1746676213549,1.0639815,99014.0,99013.0,0.4849835]
[1746676214954,1.0639815,99014.0,99013.0,0.4949835]
[1746676215253,1.0639815,99014.0,99013.0,0.293]
[1746676215656,1.0629815,99014.0,99013.0,0.4949835]
[1746676215850,0.862,99014.0,99013.0,0.4949835]
[1746676216047,0.862,99014.0,99013.0,0.7549835]
[1746676216248,0.862,99014.0,99013.0,0.4849835]
[1746676216452,0.861,99014.0,99013.0,0.9451835]
[1746676216647,0.862,99014.0,99013.0,0.6651835]
[1746676217355,0.86,99014.0,99013.0,0.6771835]
[1746676217556,0.86,99014.0,99013.0,0.6791835]
[1746676218760,0.86,99014.0,99013.0,0.7091835]
[1746676218949,0.86,99014.0,99013.0,0.6791835]
[1746676219446,0.2524415,99031.0,99030.0,0.2019407]
[1746676219658,0.2524415,99031.0,99030.0,0.5627407]
[1746676219857,1.1124415,99031.0,99030.0,0.5627407]
[1746676220052,1.1124415,99031.0,99030.0,0.5727407]
[1746676220250,1.1124415,99031.0,99030.0,0.6849307]
[1746676220657,1.1144415,99031.0,99030.0,0.6849307]
[1746676220859,1.1144415,99031.0,99030.0,0.6949307]
[1746676221051,1.1164415,99031.0,99030.0,0.01]
[1746676221254,0.2019652,99022.0,99021.0,0.0757]